[Event "Julius Baer Generation Cup Prelims 2022"]
[Site "Online"]
[Date "2022.09.14"]
[Round "1.2"]
[White "Ivanchuk, Vasyl"]
[Black "Praggnanandhaa R"]
[Result "0-1"]
[ECO "C78"]
[WhiteElo "2678"]
[BlackElo "2676"]
[Annotator "ChessBase"]
[PlyCount "76"]
[EventDate "2022.09.12"]
[EventType "tourn"]
[EventCountry "NET"]
[SourceTitle "playchess.com"]
[Source "ChessBase"]
[SourceQuality "1"]
[TimeControl "900+10"]

1. e4 {[%emt 0:00:00]} e5 {[%emt 0:00:00]} 2. Nf3 {[%emt 0:00:15]} Nc6 {[%emt 0:00:02]} 3. Bb5 {[%emt 0:00:01]} a6 {[%emt 0:00:01]} 4. Ba4 {[%emt 0:00:01]} Nf6 {[%emt 0:00:02]} 5. O-O {[%emt 0:00:02]} b5 {[%emt 0:00:03]} 6. Bb3 {[%emt 0:00:01]} Bc5 {[%emt 0:00:01]} 7. a4 {[%emt 0:00:20]} Rb8 {[%emt 0:00:04]} 8. c3 {[%emt 0:00:05]} d6 {[%emt 0:00:01]} 9. d4 {[%emt 0:00:01]} Bb6 {[%emt 0:00:01]} 10. Na3 {[%emt 0:00:01]} O-O {[%emt 0:00:13]} 11. axb5 {[%emt 0:00:03]} axb5 {[%emt 0:00:02]} 12. Nxb5 {[%emt 0:00:01]} Bg4 {[%emt 0:00:01]} 13. Bc2 {[%emt 0:00:07]} Bxf3 {[%emt 0:00:13]} 14. gxf3 {[%emt 0:00:02]} Nh5 {[%emt 0:00:02]} 15. f4 {[%emt 0:00:20]} Qh4 {[%emt 0:00:33]} 16. fxe5 {[%emt 0:00:34]} dxe5 {[%emt 0:00:03]} 17. Kh1 {[%emt 0:00:49]} Bxd4 {[%emt 0:06:20]} 18. Nxd4 {[%emt 0:00:48]} exd4 {[%emt 0:00:11]} 19. cxd4 {[%emt 0:00:24]} Rb4 {[%emt 0:00:36]} 20. Be3 {[%emt 0:03:22]} Rxb2 {[%emt 0:02:00]} 21. Rg1 {[%emt 0:00:55]} Qh3 {[%emt 0:02:17]} 22. Bd3 {[%emt 0:03:05]} Nb4 {[%emt 0:01:39]} 23. Bf1 {[%emt 0:01:25]} Qh4 {[%emt 0:00:02]} 24. Qf3 {[%emt 0:02:35]} Nf6 {[%emt 0:01:41]} 25. e5 {[%emt 0:00:21]} Ne4 {[%emt 0:01:08]} 26. Be2 {[%emt 0:02:16]} h5 {[%emt 0:01:22]} 27. Rg2 {[%emt 0:00:46]} Nd5 {[%emt 0:00:29]} 28. Rag1 {[%emt 0:00:53]} g6 {[%emt 0:00:30]} 29. Bh6 {[%emt 0:00:16]} Rfb8 {[%emt 0:00:11]} 30. e6 {[%emt 0:00:04]} Ndf6 {[%emt 0:00:05]} 31. exf7+ {[%emt 0:00:06]} Kxf7 {[%emt 0:00:01]} 32. Be3 {[%emt 0:00:02]} g5 {[%emt 0:00:25]} 33. Rxg5 {[%emt 0:00:16]} Nxg5 {[%emt 0:00:06]} 34. Bc4+ {[%emt 0:00:01]} Ne6 {[%emt 0:00:09]} 35. d5 {[%emt 0:00:07]} Qxc4 {[%emt 0:00:05]} 36. dxe6+ {[%emt 0:00:03]} Qxe6 {[%emt 0:00:01]} 37. Qg3 {[%emt 0:00:02]} Qc6+ {[%emt 0:00:10]} 38. f3 {[%emt 0:00:10]} Rg8 {[%emt 0:00:01]} 0-1

[Event "Julius Baer Generation Cup Prelims 2022"]
[Site "Online"]
[Date "2022.09.14"]
[Round "1.3"]
[White "Duda, Jan-Krzysztof"]
[Black "Aronian, Levon"]
[Result "1/2-1/2"]
[ECO "C67"]
[WhiteElo "2731"]
[BlackElo "2759"]
[Annotator "ChessBase"]
[PlyCount "120"]
[EventDate "2022.09.12"]
[EventType "tourn"]
[EventCountry "NET"]
[SourceTitle "playchess.com"]
[Source "ChessBase"]
[SourceQuality "1"]
[TimeControl "900+10"]

1. e4 {[%emt 0:00:00]} e5 {[%emt 0:00:00]} 2. Nf3 {[%emt 0:00:03]} Nc6 {[%emt 0:00:01]} 3. Bb5 {[%emt 0:00:01]} Nf6 {[%emt 0:00:02]} 4. O-O {[%emt 0:00:03]} Nxe4 {[%emt 0:00:01]} 5. Re1 {[%emt 0:00:01]} Nd6 {[%emt 0:00:01]} 6. Nxe5 {[%emt 0:00:01]} Be7 {[%emt 0:00:01]} 7. Bf1 {[%emt 0:00:01]} Nxe5 {[%emt 0:00:02]} 8. Rxe5 {[%emt 0:00:00]} O-O {[%emt 0:00:01]} 9. d4 {[%emt 0:00:01]} Bf6 {[%emt 0:00:03]} 10. Re1 {[%emt 0:00:02]} Re8 {[%emt 0:00:01]} 11. c3 {[%emt 0:00:06]} Rxe1 {[%emt 0:00:08]} 12. Qxe1 {[%emt 0:00:00]} Ne8 {[%emt 0:00:16]} 13. a4 {[%emt 0:00:13]} d5 {[%emt 0:00:28]} 14. a5 {[%emt 0:00:05]} c6 {[%emt 0:00:03]} 15. Bf4 {[%emt 0:00:45]} g6 {[%emt 0:00:04]} 16. Nd2 {[%emt 0:00:09]} Ng7 {[%emt 0:00:02]} 17. Nb3 {[%emt 0:01:08]} Ne6 {[%emt 0:00:02]} 18. Be5 {[%emt 0:00:01]} Bd7 {[%emt 0:00:03]} 19. Qe3 {[%emt 0:00:20]} Qe7 {[%emt 0:01:14]} 20. Re1 {[%emt 0:02:23]} Re8 {[%emt 0:00:04]} 21. h3 {[%emt 0:02:18]} Bg5 {[%emt 0:00:45]} 22. Qg3 {[%emt 0:01:37]} Bh4 {[%emt 0:00:05]} 23. Qh2 {[%emt 0:00:00]} Qd8 {[%emt 0:00:42]} 24. Bg3 {[%emt 0:00:35]} Bf6 {[%emt 0:00:30]} 25. Bd6 {[%emt 0:00:06]} b6 {[%emt 0:00:10]} 26. a6 {[%emt 0:00:11]} Bh4 {[%emt 0:00:47]} 27. Nc1 {[%emt 0:00:46]} c5 {[%emt 0:00:42]} 28. dxc5 {[%emt 0:01:14]} bxc5 {[%emt 0:00:00]} 29. Bg3 {[%emt 0:00:20]} Bf6 {[%emt 0:01:09]} 30. Nd3 {[%emt 0:00:50]} Bb5 {[%emt 0:00:07]} 31. Be5 {[%emt 0:00:01]} Bxd3 {[%emt 0:02:30]} 32. Bxf6 {[%emt 0:00:03]} Qxf6 {[%emt 0:00:00]} 33. Bxd3 {[%emt 0:00:01]} c4 {[%emt 0:00:01]} 34. Bf1 {[%emt 0:00:23]} Rd8 {[%emt 0:00:17]} 35. h4 {[%emt 0:01:17]} h5 {[%emt 0:00:25]} 36. Qg3 {[%emt 0:00:45]} Nc5 {[%emt 0:02:15]} 37. Qc7 {[%emt 0:00:22]} Nxa6 {[%emt 0:00:05]} 38. Qxa7 {[%emt 0:00:00]} Nb8 {[%emt 0:01:09]} 39. g3 {[%emt 0:00:18]} Nc6 {[%emt 0:00:20]} 40. Qc7 {[%emt 0:00:17]} Qd6 {[%emt 0:00:50]} 41. Qxd6 {[%emt 0:01:01]} Rxd6 {[%emt 0:00:00]} 42. Rd1 {[%emt 0:01:10]} Rd8 {[%emt 0:00:01]} 43. Bg2 {[%emt 0:00:18]} Ne7 {[%emt 0:00:02]} 44. Kf1 {[%emt 0:00:03]} Kg7 {[%emt 0:00:15]} 45. Rd4 {[%emt 0:00:49]} Kf6 {[%emt 0:00:02]} 46. b3 {[%emt 0:00:50]} cxb3 {[%emt 0:00:54]} 47. Rb4 {[%emt 0:00:02]} Rc8 {[%emt 0:00:16]} 48. Rb6+ {[%emt 0:00:08]} Kg7 {[%emt 0:00:19]} 49. Rxb3 {[%emt 0:00:01]} Rc4 {[%emt 0:00:04]} 50. Ke2 {[%emt 0:00:19]} d4 {[%emt 0:00:03]} 51. Kd3 {[%emt 0:00:07]} Rxc3+ {[%emt 0:00:04]} 52. Rxc3 {[%emt 0:00:01]} dxc3 {[%emt 0:00:01]} 53. Kxc3 {[%emt 0:00:00]} Kf6 {[%emt 0:00:09]} 54. Kd3 {[%emt 0:00:01]} Nf5 {[%emt 0:00:03]} 55. Ke4 {[%emt 0:00:03]} Nh6 {[%emt 0:00:01]} 56. Bh3 {[%emt 0:00:02]} Ng8 {[%emt 0:00:01]} 57. Kf4 {[%emt 0:00:01]} Ne7 {[%emt 0:00:01]} 58. Ke4 {[%emt 0:00:01]} Ng8 {[%emt 0:00:01]} 59. Kf4 {[%emt 0:00:00]} Ne7 {[%emt 0:00:01]} 60. Ke4 {[%emt 0:00:00]} Ng8 {[%emt 0:00:01]} 1/2-1/2

[Event "Julius Baer Generation Cup Prelims 2022"]
[Site "Online"]
[Date "2022.09.14"]
[Round "1.4"]
[White "Gelfand, Boris"]
[Black "Niemann, Hans Moke"]
[Result "0-1"]
[ECO "E11"]
[WhiteElo "2668"]
[BlackElo "2688"]
[Annotator "ChessBase"]
[PlyCount "40"]
[EventDate "2022.09.12"]
[EventType "tourn"]
[EventCountry "NET"]
[SourceTitle "playchess.com"]
[Source "ChessBase"]
[SourceQuality "1"]
[TimeControl "900+10"]

1. d4 {[%emt 0:00:00]} Nf6 {[%emt 0:00:00]} 2. c4 {[%emt 0:00:02]} e6 {[%emt 0:00:02]} 3. Nf3 {[%emt 0:00:01]} d5 {[%emt 0:00:02]} 4. g3 {[%emt 0:00:01]} Bb4+ {[%emt 0:00:05]} 5. Bd2 {[%emt 0:00:02]} Be7 {[%emt 0:00:02]} 6. Bg2 {[%emt 0:00:02]} O-O {[%emt 0:00:00]} 7. O-O {[%emt 0:00:02]} Nbd7 {[%emt 0:00:01]} 8. Qc2 {[%emt 0:00:01]} c6 {[%emt 0:00:01]} 9. Nc3 {[%emt 0:00:21]} dxc4 {[%emt 0:01:03]} 10. Ne4 {[%emt 0:00:03]} Nxe4 {[%emt 0:02:08]} 11. Qxe4 {[%emt 0:00:03]} Nf6 {[%emt 0:00:00]} 12. Qc2 {[%emt 0:00:01]} b5 {[%emt 0:00:01]} 13. b3 {[%emt 0:00:01]} Bb7 {[%emt 0:00:41]} 14. bxc4 {[%emt 0:00:20]} c5 {[%emt 0:00:03]} 15. cxb5 {[%emt 0:00:05]} cxd4 {[%emt 0:00:04]} 16. a4 {[%emt 0:00:30]} Be4 {[%emt 0:00:52]} 17. Qb2 {[%emt 0:00:50]} Qd5 {[%emt 0:00:03]} 18. Rfd1 {[%emt 0:03:16]} Rac8 {[%emt 0:03:01]} 19. Bf4 {[%emt 0:04:22]} e5 {[%emt 0:00:33]} 20. Bg5 {[%emt 0:05:53]} Rc2 {[%emt 0:00:39]} 0-1

[Event "Julius Baer Generation Cup Prelims 2022"]
[Site "Online"]
[Date "2022.09.14"]
[Round "1.5"]
[White "Yoo, Christopher Woojin"]
[Black "Navara, David"]
[Result "0-1"]
[ECO "D38"]
[WhiteElo "2563"]
[BlackElo "2681"]
[Annotator "ChessBase"]
[PlyCount "106"]
[EventDate "2022.09.12"]
[EventType "tourn"]
[EventCountry "NET"]
[SourceTitle "playchess.com"]
[Source "ChessBase"]
[SourceQuality "1"]
[TimeControl "900+10"]

1. d4 {[%emt 0:00:00]} Nf6 {[%emt 0:00:00]} 2. Nf3 {[%emt 0:00:07]} d5 {[%emt 0:00:05]} 3. c4 {[%emt 0:00:05]} e6 {[%emt 0:00:05]} 4. Nc3 {[%emt 0:00:08]} Bb4 {[%emt 0:00:01]} 5. Bg5 {[%emt 0:00:32]} h6 {[%emt 0:00:04]} 6. Bxf6 {[%emt 0:00:05]} Qxf6 {[%emt 0:00:00]} 7. Qb3 {[%emt 0:00:05]} c5 {[%emt 0:00:08]} 8. cxd5 {[%emt 0:00:41]} exd5 {[%emt 0:00:00]} 9. e3 {[%emt 0:00:06]} O-O {[%emt 0:00:38]} 10. dxc5 {[%emt 0:01:01]} Bxc3+ {[%emt 0:00:04]} 11. Qxc3 {[%emt 0:00:03]} Qxc3+ {[%emt 0:00:01]} 12. bxc3 {[%emt 0:00:00]} Nd7 {[%emt 0:00:54]} 13. Rd1 {[%emt 0:00:24]} Nf6 {[%emt 0:00:22]} 14. Bd3 {[%emt 0:02:40]} Bg4 {[%emt 0:02:48]} 15. Rb1 {[%emt 0:00:46]} Nd7 {[%emt 0:00:20]} 16. c6 {[%emt 0:01:32]} bxc6 {[%emt 0:00:00]} 17. Nd4 {[%emt 0:01:08]} Ne5 {[%emt 0:01:00]} 18. Be2 {[%emt 0:00:06]} Rfb8 {[%emt 0:00:27]} 19. Kd2 {[%emt 0:00:23]} Rb6 {[%emt 0:01:45]} 20. f3 {[%emt 0:03:25]} Bh5 {[%emt 0:02:50]} 21. g4 {[%emt 0:00:24]} Bg6 {[%emt 0:00:03]} 22. Nf5 {[%emt 0:00:01]} Bxf5 {[%emt 0:00:28]} 23. gxf5 {[%emt 0:00:02]} Rab8 {[%emt 0:00:01]} 24. Rxb6 {[%emt 0:00:08]} Rxb6 {[%emt 0:00:00]} 25. Kc2 {[%emt 0:00:01]} Kf8 {[%emt 0:00:10]} 26. a4 {[%emt 0:02:15]} a5 {[%emt 0:00:05]} 27. Rd1 {[%emt 0:01:02]} Ke7 {[%emt 0:00:06]} 28. e4 {[%emt 0:00:15]} dxe4 {[%emt 0:00:15]} 29. fxe4 {[%emt 0:00:00]} g5 {[%emt 0:00:36]} 30. h3 {[%emt 0:00:24]} f6 {[%emt 0:01:48]} 31. Rg1 {[%emt 0:00:45]} Rb8 {[%emt 0:00:18]} 32. Rd1 {[%emt 0:00:36]} Nd7 {[%emt 0:01:17]} 33. Bc4 {[%emt 0:00:30]} h5 {[%emt 0:00:03]} 34. Be2 {[%emt 0:00:11]} h4 {[%emt 0:00:10]} 35. Rd4 {[%emt 0:00:27]} Rd8 {[%emt 0:00:37]} 36. Rc4 {[%emt 0:00:36]} Ne5 {[%emt 0:02:02]} 37. Rd4 {[%emt 0:00:01]} g4 {[%emt 0:00:02]} 38. hxg4 {[%emt 0:00:15]} h3 {[%emt 0:00:01]} 39. Rxd8 {[%emt 0:00:12]} Kxd8 {[%emt 0:00:00]} 40. Bf1 {[%emt 0:00:01]} h2 {[%emt 0:00:01]} 41. Bg2 {[%emt 0:00:01]} Nxg4 {[%emt 0:00:00]} 42. Kd2 {[%emt 0:00:01]} Kd7 {[%emt 0:00:51]} 43. Ke2 {[%emt 0:00:07]} Ne5 {[%emt 0:00:59]} 44. Kf2 {[%emt 0:00:09]} Nd3+ {[%emt 0:00:01]} 45. Kg3 {[%emt 0:00:06]} Nc5 {[%emt 0:00:00]} 46. e5 {[%emt 0:00:04]} fxe5 {[%emt 0:00:00]} 47. f6 {[%emt 0:00:08]} Nxa4 {[%emt 0:00:23]} 48. Kg4 {[%emt 0:00:33]} Nxc3 {[%emt 0:00:36]} 49. Kf5 {[%emt 0:00:09]} Nd5 {[%emt 0:00:11]} 50. Be4 {[%emt 0:00:39]} Nxf6 {[%emt 0:00:08]} 51. Kxf6 {[%emt 0:00:03]} a4 {[%emt 0:00:01]} 52. Kxe5 {[%emt 0:00:08]} a3 {[%emt 0:00:01]} 53. Kf4 {[%emt 0:00:17]} a2 {[%emt 0:00:01]} 0-1

[Event "Julius Baer Generation Cup Prelims 2022"]
[Site "Online"]
[Date "2022.09.14"]
[Round "1.7"]
[White "Keymer, Vincent"]
[Black "Adhiban, B.."]
[Result "1/2-1/2"]
[ECO "A85"]
[WhiteElo "2693"]
[BlackElo "2603"]
[Annotator "ChessBase"]
[PlyCount "55"]
[EventDate "2022.09.12"]
[EventType "tourn"]
[EventCountry "NET"]
[SourceTitle "playchess.com"]
[Source "ChessBase"]
[SourceQuality "1"]
[TimeControl "900+10"]

1. Nf3 {[%emt 0:00:00]} f5 {[%emt 0:00:00]} 2. d4 {[%emt 0:00:03]} Nf6 {[%emt 0:00:02]} 3. c4 {[%emt 0:00:04]} g6 {[%emt 0:00:02]} 4. Nc3 {[%emt 0:00:05]} Bg7 {[%emt 0:00:01]} 5. e3 {[%emt 0:00:03]} O-O {[%emt 0:00:06]} 6. b4 {[%emt 0:00:02]} d6 {[%emt 0:03:43]} 7. Bb2 {[%emt 0:00:01]} e5 {[%emt 0:03:36]} 8. dxe5 {[%emt 0:00:55]} dxe5 {[%emt 0:00:00]} 9. Qxd8 {[%emt 0:01:48]} Rxd8 {[%emt 0:00:00]} 10. Nxe5 {[%emt 0:00:01]} Nc6 {[%emt 0:00:03]} 11. Nxc6 {[%emt 0:00:41]} bxc6 {[%emt 0:00:00]} 12. Rd1 {[%emt 0:02:51]} Rxd1+ {[%emt 0:00:33]} 13. Nxd1 {[%emt 0:00:02]} a5 {[%emt 0:00:01]} 14. b5 {[%emt 0:00:28]} cxb5 {[%emt 0:00:03]} 15. cxb5 {[%emt 0:00:00]} Be6 {[%emt 0:00:02]} 16. a3 {[%emt 0:00:09]} Rd8 {[%emt 0:00:11]} 17. Be2 {[%emt 0:00:12]} Ne4 {[%emt 0:03:06]} 18. Bxg7 {[%emt 0:01:45]} Kxg7 {[%emt 0:00:00]} 19. f3 {[%emt 0:00:00]} Nd2 {[%emt 0:00:16]} 20. Nb2 {[%emt 0:01:37]} Nb1 {[%emt 0:01:51]} 21. Kf2 {[%emt 0:00:14]} Nxa3 {[%emt 0:00:03]} 22. Ra1 {[%emt 0:03:58]} Rd2 {[%emt 0:03:07]} 23. Rxa3 {[%emt 0:03:14]} Rxb2 {[%emt 0:00:03]} 24. Ke1 {[%emt 0:00:02]} Rb1+ {[%emt 0:00:03]} 25. Kf2 {[%emt 0:00:41]} Rb2 {[%emt 0:00:02]} 26. Ke1 {[%emt 0:00:01]} Rb1+ {[%emt 0:00:09]} 27. Kd2 {[%emt 0:00:02]} Rb2+ {[%emt 0:00:05]} 28. Ke1 {[%emt 0:00:04]} 1/2-1/2

[Event "Julius Baer Generation Cup Prelims 2022"]
[Site "Online"]
[Date "2022.09.14"]
[Round "1.8"]
[White "Erigaisi Arjun"]
[Black "Carlsen, Magnus"]
[Result "0-1"]
[ECO "B06"]
[WhiteElo "2725"]
[BlackElo "2861"]
[Annotator "TA"]
[PlyCount "52"]
[EventDate "2022.09.12"]
[EventType "tourn"]
[EventCountry "NET"]
[SourceTitle "playchess.com"]
[Source "ChessBase"]
[SourceQuality "1"]
[TimeControl "900+10"]

{[%evp 12,52,41,14,50,29,32,11,32,-3,-15,-125,-105,-119,-97,-219,-227,-229,-127,-217,-149,-153,-151,-285,-283,-379,-345,-586,-570,-644,-548,-577,-454,-452,-422,-670,-642,-664,-659,-1139,-1130,-1270,-1237]} 1. e4 {[%emt 0:00:00]} g6 {[%emt 0:00:00]} 2. d4 {[%emt 0:00:04]} d6 {[%emt 0:00:05]} 3. Nc3 {[%emt 0:00:03]} Bg7 {[%emt 0:00:07]} 4. Be3 {[%emt 0:00:01]} a6 {[%emt 0:00:10]} 5. Qd2 {[%emt 0:00:08]} b5 {[%emt 0:00:05]} 6. f3 {[%emt 0:00:17]} Nd7 {[%emt 0:01:03]} 7. h4 {[%emt 0:00:06]} Ngf6 {[%emt 0:00:05] B06: Modern Defence.} 8. O-O-O {[%emt 0:00:38]} h5 {[%emt 0:02:47] Prevents g4. 8...Nb6 is becoming the main line.} 9. e5 {[%emt 0:00:38]} b4 {[%emt 0:00:02] [#] The position is equal.} 10. Nb1 $146 {[%emt 0:02:18]} ({Predecessor:} 10. Na4 Nd5 11. Bg5 c6 12. exd6 Qa5 13. c4 Qxa4 14. cxd5 Nb6 15. dxe7 Nxd5 16. Bd3 Qxa2 {½-½ (26) Ould Ahmed,S (2411)-Tashkov,R (2518) ICCF email 2011}) 10... Nd5 {[%emt 0:00:01]} 11. Bg5 {[%emt 0:00:17]} (11. e6 $11 N7b6 12. exf7+ Kxf7 13. Re1) 11... N7b6 $17 {[%emt 0:00:30]} 12. Re1 {[%emt 0:01:14]} Be6 {[%emt 0:00:40]} 13. f4 {[%emt 0:01:12]} (13. Nh3 $17) 13... Qd7 $19 {[%emt 0:00:09]} 14. Bd3 {[%emt 0:00:13]} a5 {[%emt 0:00:41]} ({Black should try} 14... c5 $19 {And now ...c4 would win.} 15. dxc5 dxc5) 15. Qe2 {[%emt 0:00:42]} (15. Ne2 $17 {was worth a try.}) 15... O-O-O {[%emt 0:00:35]} 16. Nf3 {[%emt 0:00:46]} Kb8 {[%emt 0:01:28]} 17. Nbd2 {[%emt 0:01:41]} (17. c3 $17 bxc3 18. Nxc3) 17... Qa4 {[%emt 0:00:27]} 18. exd6 {[%emt 0:01:08]} cxd6 {[%emt 0:00:49]} 19. Bxg6 $2 {[%emt 0:00:13] [#]} (19. Nc4 {was called for.} Qxa2 20. Nxb6 Nxb6 21. f5 gxf5 22. Kd2) 19... Qxa2 {[%emt 0:01:37] Black is clearly winning.} 20. f5 {[%emt 0:01:36]} Na4 {[%emt 0:01:03][%cal Bb6a4,Ba4c3,Bc3b5,Bb5d4][%mdl 32]} 21. Ne4 {[%emt 0:01:45]} Qxb2+ {[%emt 0:00:28]} 22. Kd2 {[%emt 0:00:01]} Nac3 {[%emt 0:00:15] Against Rb1} ({Not} 22... fxg6 $2 23. fxe6 Nac3 24. Qd3 $19) 23. Qd3 {[%emt 0:00:16]} (23. Rb1 $142 Qxb1 24. Rxb1 Nxe2 25. Kxe2) 23... Bd7 {[%emt 0:00:57]} 24. Bxf7 {[%emt 0:00:34]} Bb5 {[%emt 0:00:02]} 25. Qxb5+ {[%emt 0:00:21]} Nxb5 {[%emt 0:00:01]} 26. Bxd5 {[%emt 0:00:10]} Nxd4 {[%emt 0:00:02] Weighted Error Value: White=0.99/Black=0.24 (precise)} 0-1

[Event "Julius Baer Generation Cup Prelims 2022"]
[Site "Online"]
[Date "2022.09.14"]
[Round "2.1"]
[White "Giri, Anish"]
[Black "Carlsen, Magnus"]
[Result "1/2-1/2"]
[ECO "B08"]
[WhiteElo "2764"]
[BlackElo "2861"]
[Annotator "TA"]
[PlyCount "87"]
[EventDate "2022.09.12"]
[EventType "tourn"]
[EventCountry "NET"]
[SourceTitle "playchess.com"]
[Source "ChessBase"]
[SourceQuality "1"]
[TimeControl "900+10"]

{[%evp 14,87,81,59,80,77,70,77,102,23,16,14,24,9,18,16,13,0,2,2,10,1,5,-5,0,-6,-4,-10,-5,-14,0,0,0,0,0,-15,0,0,0,0,0,0,0,0,0,0,0,0,0,0,0,0,0,0,0,0,0,0,0,0,0,0,0,0,0,0,0,0,0,0,0,0,0,0,0,0]} 1. e4 {[%emt 0:00:00]} d6 {[%emt 0:00:00]} 2. d4 {[%emt 0:00:08]} g6 {[%emt 0:00:04]} 3. Nf3 {[%emt 0:00:05]} Bg7 {[%emt 0:00:04]} 4. Be2 {[%emt 0:00:02]} Nf6 {[%emt 0:00:05]} 5. Nc3 {[%emt 0:00:01]} O-O {[%emt 0:00:01]} 6. O-O {[%emt 0:00:01]} Nc6 $1 {[%emt 0:00:21][%mdl 4] 6...Nc6 is the recent fashion.} 7. d5 {[%emt 0:00:07]} Nb8 {[%emt 0:00:02]} 8. Be3 {[%emt 0:00:27] CPLX 2.0 22 (a2-a4) (=22)} e5 {[%emt 0:01:05] CPLX 2.0 21 (c7-c6) (=21)} 9. dxe6 {[%emt 0:00:03] White is more active. CPLX 2.0 3 (Nf3-d2) (=13)} Bxe6 {[%emt 0:00:02] RECAPT} 10. Qd2 {[%emt 0:00:22] BESTDEEP} Nc6 {[%emt 0:00:10] CPLX 2.2 25 (Rf8-e8) (=15). White is better.} 11. h3 {[%emt 0:01:16] [#] RELBLUND 79 (Be3-g5) (=26)} ({Better is} 11. Bg5 $16) 11... d5 $146 {[%emt 0:02:07] BESTDEEP} ({Predecessor:} 11... Re8 12. Rad1 a6 13. Bg5 b5 14. Qf4 b4 15. Nd5 Bxd5 16. exd5 Rxe2 17. dxc6 Rxc2 18. Qxb4 {0-1 (50) Lampert,J (2544)-Lagarde,M (2604) Chess.com INT 2019}) 12. exd5 {[%emt 0:00:21] CPLX 2.8} Nxd5 {[%emt 0:00:01] RECAPT} 13. Nxd5 {[%emt 0:01:00] RECAPT 15 (Be3-g5) (=20)} Qxd5 {[%emt 0:00:02] RECAPT. The position is equal.} 14. Qxd5 {[%emt 0:00:04] CPLX 2.7 2 (Qd2-c1) (=17)} Bxd5 {[%emt 0:00:00] RECAPT} 15. c3 {[%emt 0:00:23] CPLX 2.0 13 (Rf1-d1) (=17)} Ne5 {[%emt 0:00:23] CPLX 2.0} 16. Nxe5 {[%emt 0:00:06] CPLX 2.1} Bxe5 {[%emt 0:00:01] RECAPT} 17. Rfd1 {[%emt 0:00:16] CPLX 2.0} c6 {[%emt 0:00:10] CPLX 2.1 4 (Bd5-c6) (=5)} 18. Bd4 {[%emt 0:00:40] CPLX 2.0 10 (Be2-f3) (=13)} Rfe8 {[%emt 0:00:09] [#] Threatens to win with ...Bxd4. CPLX 2.1 5 (Be5xBd4) (=5)} 19. Bf1 {[%emt 0:00:51] CPLX 2.0 6 (Bd4-e3) (=13)} Bxd4 {[%emt 0:00:05] CPLX 2.0 2 (Be5-c7) (=5)} 20. Rxd4 {[%emt 0:00:00] RECAPT} Be6 {[%emt 0:00:00] BESTDEEP} 21. b3 {[%emt 0:03:42] CPLX 2.0 9 (a2-a3) (=11)} a5 {[%emt 0:00:33] CPLX 2.0 14 (Re8-d8) (=5)} 22. Rad1 {[%emt 0:00:20] CPLX 2.0} a4 {[%emt 0:00:05] CPLX 2.0 0 (Kg8-f8) (=5)} 23. bxa4 {[%emt 0:00:34] CPLX 2.0} Bxa2 {[%emt 0:00:25] CPLX 2.0} 24. Bc4 {[%emt 0:01:02] CPLX 2.0 15 (Rd4-b4) (=10)} c5 {[%emt 0:00:50] CPLX 2.4 15 (Ra8xa4) (=5)} 25. Rf4 {[%emt 0:00:03] CPLX 2.6} Rxa4 {[%emt 0:00:09] BESTDEEP} 26. Bxf7+ {[%emt 0:00:09] EASY} Bxf7 {[%emt 0:00:00] RECAPT} 27. Rxa4 {[%emt 0:00:00][%mdl 4096] Endgame KRR-KRB. EASY} Bb3 {[%emt 0:00:00][%csl LRa4,LRd1] EASY} 28. Raa1 {[%emt 0:00:19] CPLX 2.8} Bxd1 {[%emt 0:00:01] EASY} 29. Rxd1 {[%emt 0:00:00] KR-KR. RECAPT} b5 {[%emt 0:00:13] CPLX 2.0 0 (Kg8-f7) (=4)} 30. Rd5 {[%emt 0:00:12] BESTDEEP} Re1+ {[%emt 0:00:05] CPLX 2.0 0 (Re8-c8) (=4)} 31. Kh2 {[%emt 0:00:01] LEGAL} c4 {[%emt 0:00:00] BESTDEEP} ({Much less strong is} 31... b4 32. Rxc5 b3 33. Rb5 $16) 32. Rxb5 {[%emt 0:00:02] CPLX 2.0} Rc1 {[%emt 0:00:01] EASY} 33. Rc5 {[%emt 0:00:06] CPLX 2.0 0 (Rb5-b8) (=7)} Rxc3 {[%emt 0:00:00] EASY} 34. Rc7 {[%emt 0:00:08] CPLX 2.0} h5 {[%emt 0:00:01] CPLX 2.0 0 (Rc3-a3) (=3)} 35. h4 {[%emt 0:00:03] CPLX 2.0 0 (g2-g4) (=6)} Kf8 {[%emt 0:00:05]} 36. Rc6 {[%emt 0:00:17] CPLX 2.0 0 (g2-g3) (=6)} Kf7 {[%emt 0:00:03] CPLX 2.0} 37. f3 {[%emt 0:00:01] CPLX 2.0 0 (g2-g3) (=6)} Rc2 {[%emt 0:00:01] CPLX 2.0} 38. Kg3 {[%emt 0:00:02]} c3 {[%emt 0:00:01]} 39. Kf4 {[%emt 0:00:26]} Rxg2 {[%emt 0:00:01] [#] White must now prevent ...c2. CPLX 2.1} 40. Rxc3 {[%emt 0:00:00] CPLX 2.2} Kf6 {[%emt 0:00:01] BESTDEEP} 41. Rc6+ {[%emt 0:00:02] CPLX 2.0 0 (Rc3-c7) (=5)} Kf7 {[%emt 0:00:00] CPLX 2.0 0 (Kf6-g7) (=3)} 42. Rc3 {[%emt 0:00:01] CPLX 2.0 0 (Rc6-c7) (=5)} Kf6 {[%emt 0:00:00] BESTDEEP} 43. Rc6+ {[%emt 0:00:01] CPLX 2.0} Kf7 {[%emt 0:00:01] CPLX 2.0 0 (Kf6-g7) (=3)} 44. Rc3 {[%emt 0:00:00] Weighted Error Value: White=0.07 (flawless) /Black=0.03 (flawless)} 1/2-1/2